Workbook

Sheet Liv-ex
B1: Please 'Enable Editing' and 'Enable Content' to interact with the sheet
B10: Wine | C10: Vintage | D10: Unit Size | E10: Offer (GBP) | F10: Offer (Eur/btt) | G10: Quantity | H10: Latest LWIN | I10: LWIN11
B11: Altesino, Brunello Montalcino | C11: 2013 | D11: 6x75 | E11: 169 | F11: 31.8 | G11: 10 | H11: 10952582013 | I11: =HYPERLINK("https://app.liv-ex.com/#/wine-page?lwin11="&Table1[[#This Row],[Latest LWIN]],Table1[[#This Row],[Latest LWIN]]) -> 10952582013
B12: Altesino, Brunello Montalcino | C12: 2012 | D12: 6x75 | E12: 180 | F12: 33.9 | G12: 10 | H12: 10952582012 | I12: =HYPERLINK("https://app.liv-ex.com/#/wine-page?lwin11="&Table1[[#This Row],[Latest LWIN]],Table1[[#This Row],[Latest LWIN]]) -> 10952582012
B13: Antinori, Bolgheri Guado Al Tasso | C13: 2017 | D13: 6x75 | E13: 425 | F13: 80 | G13: 20 | H13: 10953622017 | I13: =HYPERLINK("https://app.liv-ex.com/#/wine-page?lwin11="&Table1[[#This Row],[Latest LWIN]],Table1[[#This Row],[Latest LWIN]]) -> 10953622017
B14: Antinori, Bolgheri Guado Al Tasso | C14: 2016 | D14: 6x75 | E14: 386 | F14: 72.7 | G14: 5 | H14: 10953622016 | I14: =HYPERLINK("https://app.liv-ex.com/#/wine-page?lwin11="&Table1[[#This Row],[Latest LWIN]],Table1[[#This Row],[Latest LWIN]]) -> 10953622016
B15: Antinori, Bolgheri Guado Al Tasso | C15: 2014 | D15: 1x150 | E15: 123 | F15: 139 | G15: 1 | H15: 10953622014 | I15: =HYPERLINK("https://app.liv-ex.com/#/wine-page?lwin11="&Table1[[#This Row],[Latest LWIN]],Table1[[#This Row],[Latest LWIN]]) -> 10953622014
B16: Antinori, Bolgheri Guado Al Tasso | C16: 2014 | D16: 6x75 | E16: 424 | F16: 79.9 | G16: 1 | H16: 10953622014 | I16: =HYPERLINK("https://app.liv-ex.com/#/wine-page?lwin11="&Table1[[#This Row],[Latest LWIN]],Table1[[#This Row],[Latest LWIN]]) -> 10953622014
B17: Antinori, Bolgheri Guado Al Tasso | C17: 2013 | D17: 1x300 | E17: 271 | F17: 306.2 | G17: 1 | H17: 10953622013 | I17: =HYPERLINK("https://app.liv-ex.com/#/wine-page?lwin11="&Table1[[#This Row],[Latest LWIN]],Table1[[#This Row],[Latest LWIN]]) -> 10953622013
B18: Antinori, Bolgheri Guado Al Tasso | C18: 2012 | D18: 1x150 | E18: 131 | F18: 148 | G18: 3 | H18: 10953622012 | I18: =HYPERLINK("https://app.liv-ex.com/#/wine-page?lwin11="&Table1[[#This Row],[Latest LWIN]],Table1[[#This Row],[Latest LWIN]]) -> 10953622012
B19: Antinori, Bolgheri Guado Al Tasso | C19: 2005 | D19: 1x150 | E19: 143 | F19: 161.6 | G19: 3 | H19: 10953622005 | I19: =HYPERLINK("https://app.liv-ex.com/#/wine-page?lwin11="&Table1[[#This Row],[Latest LWIN]],Table1[[#This Row],[Latest LWIN]]) -> 10953622005
B20: Antinori, Bolgheri Guado Al Tasso | C20: 1999 | D20: 1x150 | E20: 125 | F20: 141.3 | G20: 3 | H20: 10953621999 | I20: =HYPERLINK("https://app.liv-ex.com/#/wine-page?lwin11="&Table1[[#This Row],[Latest LWIN]],Table1[[#This Row],[Latest LWIN]]) -> 10953621999
B21: Bartolo Mascarello, Barolo | C21: 2015 | D21: 6x75 | E21: 1195 | F21: 225.1 | G21: 12 | H21: 11012452015 | I21: =HYPERLINK("https://app.liv-ex.com/#/wine-page?lwin11="&Table1[[#This Row],[Latest LWIN]],Table1[[#This Row],[Latest LWIN]]) -> 11012452015
B22: Bartolo Mascarello, Barolo | C22: 2015 | D22: 2x75 | E22: 379 | F22: 214.1 | G22: 1 | H22: 11012452015 | I22: =HYPERLINK("https://app.liv-ex.com/#/wine-page?lwin11="&Table1[[#This Row],[Latest LWIN]],Table1[[#This Row],[Latest LWIN]]) -> 11012452015
B23: Bartolo Mascarello, Barolo | C23: 2015 | D23: 6x75 | E23: 1500 | F23: 282.5 | G23: 1 | H23: 11012452015 | I23: =HYPERLINK("https://app.liv-ex.com/#/wine-page?lwin11="&Table1[[#This Row],[Latest LWIN]],Table1[[#This Row],[Latest LWIN]]) -> 11012452015
B24: Bartolo Mascarello, Barolo | C24: 2015 | D24: 6x75 | E24: 1278 | F24: 240.7 | G24: 2 | H24: 11012452015 | I24: =HYPERLINK("https://app.liv-ex.com/#/wine-page?lwin11="&Table1[[#This Row],[Latest LWIN]],Table1[[#This Row],[Latest LWIN]]) -> 11012452015
B25: Bartolo Mascarello, Barolo | C25: 2014 | D25: 6x75 | E25: 1250 | F25: 235.4 | G25: 2 | H25: 11012452014 | I25: =HYPERLINK("https://app.liv-ex.com/#/wine-page?lwin11="&Table1[[#This Row],[Latest LWIN]],Table1[[#This Row],[Latest LWIN]]) -> 11012452014
B26: Bartolo Mascarello, Barolo | C26: 2014 | D26: 6x75 | E26: 1095 | F26: 206.2 | G26: 1 | H26: 11012452014 | I26: =HYPERLINK("https://app.liv-ex.com/#/wine-page?lwin11="&Table1[[#This Row],[Latest LWIN]],Table1[[#This Row],[Latest LWIN]]) -> 11012452014
B27: Bartolo Mascarello, Barolo | C27: 2014 | D27: 6x150 | E27: 2295 | F27: 432.2 | G27: 1 | H27: 11012452014 | I27: =HYPERLINK("https://app.liv-ex.com/#/wine-page?lwin11="&Table1[[#This Row],[Latest LWIN]],Table1[[#This Row],[Latest LWIN]]) -> 11012452014
B28: Bartolo Mascarello, Barolo | C28: 2013 | D28: 6x75 | E28: 1599 | F28: 301.2 | G28: 1 | H28: 11012452013 | I28: =HYPERLINK("https://app.liv-ex.com/#/wine-page?lwin11="&Table1[[#This Row],[Latest LWIN]],Table1[[#This Row],[Latest LWIN]]) -> 11012452013
B29: Bartolo Mascarello, Barolo | C29: 2013 | D29: 6x75 | E29: 1550 | F29: 291.9 | G29: 4 | H29: 11012452013 | I29: =HYPERLINK("https://app.liv-ex.com/#/wine-page?lwin11="&Table1[[#This Row],[Latest LWIN]],Table1[[#This Row],[Latest LWIN]]) -> 11012452013
B30: Bartolo Mascarello, Barolo | C30: 2013 | D30: 3x75 | E30: 840 | F30: 316.4 | G30: 2 | H30: 11012452013 | I30: =HYPERLINK("https://app.liv-ex.com/#/wine-page?lwin11="&Table1[[#This Row],[Latest LWIN]],Table1[[#This Row],[Latest LWIN]]) -> 11012452013
B31: Bartolo Mascarello, Barolo | C31: 2013 | D31: 1x150 | E31: 592 | F31: 669 | G31: 2 | H31: 11012452013 | I31: =HYPERLINK("https://app.liv-ex.com/#/wine-page?lwin11="&Table1[[#This Row],[Latest LWIN]],Table1[[#This Row],[Latest LWIN]]) -> 11012452013
B32: Bartolo Mascarello, Barolo | C32: 2012 | D32: 6x75 | E32: 980 | F32: 184.6 | G32: 1 | H32: 11012452012 | I32: =HYPERLINK("https://app.liv-ex.com/#/wine-page?lwin11="&Table1[[#This Row],[Latest LWIN]],Table1[[#This Row],[Latest LWIN]]) -> 11012452012
B33: Bartolo Mascarello, Barolo | C33: 2012 | D33: 1x150 | E33: 385 | F33: 435.1 | G33: 6 | H33: 11012452012 | I33: =HYPERLINK("https://app.liv-ex.com/#/wine-page?lwin11="&Table1[[#This Row],[Latest LWIN]],Table1[[#This Row],[Latest LWIN]]) -> 11012452012
B34: Bartolo Mascarello, Barolo | C34: 2012 | D34: 1x75 | E34: 159 | F34: 179.7 | G34: 1 | H34: 11012452012 | I34: =HYPERLINK("https://app.liv-ex.com/#/wine-page?lwin11="&Table1[[#This Row],[Latest LWIN]],Table1[[#This Row],[Latest LWIN]]) -> 11012452012
B35: Bartolo Mascarello, Barolo | C35: 2010 | D35: 6x75 | E35: 2700 | F35: 508.5 | G35: 1 | H35: 11012452010 | I35: =HYPERLINK("https://app.liv-ex.com/#/wine-page?lwin11="&Table1[[#This Row],[Latest LWIN]],Table1[[#This Row],[Latest LWIN]]) -> 11012452010
B36: Bartolo Mascarello, Barolo | C36: 2009 | D36: 6x75 | E36: 1060 | F36: 199.6 | G36: 1 | H36: 11012452009 | I36: =HYPERLINK("https://app.liv-ex.com/#/wine-page?lwin11="&Table1[[#This Row],[Latest LWIN]],Table1[[#This Row],[Latest LWIN]]) -> 11012452009
B37: Bartolo Mascarello, Barolo | C37: 2009 | D37: 1x150 | E37: 675 | F37: 762.8 | G37: 3 | H37: 11012452009 | I37: =HYPERLINK("https://app.liv-ex.com/#/wine-page?lwin11="&Table1[[#This Row],[Latest LWIN]],Table1[[#This Row],[Latest LWIN]]) -> 11012452009
B38: Bartolo Mascarello, Barolo | C38: 2008 | D38: 1x150 | E38: 710 | F38: 802.3 | G38: 2 | H38: 11012452008 | I38: =HYPERLINK("https://app.liv-ex.com/#/wine-page?lwin11="&Table1[[#This Row],[Latest LWIN]],Table1[[#This Row],[Latest LWIN]]) -> 11012452008
B39: Bartolo Mascarello, Barolo | C39: 2008 | D39: 1x150 | E39: 707 | F39: 799 | G39: 1 | H39: 11012452008 | I39: =HYPERLINK("https://app.liv-ex.com/#/wine-page?lwin11="&Table1[[#This Row],[Latest LWIN]],Table1[[#This Row],[Latest LWIN]]) -> 11012452008
B40: Bartolo Mascarello, Barolo | C40: 2007 | D40: 1x150 | E40: 710 | F40: 802.3 | G40: 2 | H40: 11012452007 | I40: =HYPERLINK("https://app.liv-ex.com/#/wine-page?lwin11="&Table1[[#This Row],[Latest LWIN]],Table1[[#This Row],[Latest LWIN]]) -> 11012452007
B41: Bartolo Mascarello, Barolo | C41: 2006 | D41: 1x150 | E41: 765 | F41: 864.5 | G41: 3 | H41: 11012452006 | I41: =HYPERLINK("https://app.liv-ex.com/#/wine-page?lwin11="&Table1[[#This Row],[Latest LWIN]],Table1[[#This Row],[Latest LWIN]]) -> 11012452006
B42: Bartolo Mascarello, Barolo | C42: 2005 | D42: 1x150 | E42: 715 | F42: 808 | G42: 1 | H42: 11012452005 | I42: =HYPERLINK("https://app.liv-ex.com/#/wine-page?lwin11="&Table1[[#This Row],[Latest LWIN]],Table1[[#This Row],[Latest LWIN]]) -> 11012452005
B43: Bartolo Mascarello, Barolo | C43: 2004 | D43: 1x150 | E43: 740 | F43: 836.2 | G43: 1 | H43: 11012452004 | I43: =HYPERLINK("https://app.liv-ex.com/#/wine-page?lwin11="&Table1[[#This Row],[Latest LWIN]],Table1[[#This Row],[Latest LWIN]]) -> 11012452004
B44: Bartolo Mascarello, Barolo | C44: 2000 | D44: 6x75 | E44: 1995 | F44: 375.7 | G44: 1 | H44: 11012452000 | I44: =HYPERLINK("https://app.liv-ex.com/#/wine-page?lwin11="&Table1[[#This Row],[Latest LWIN]],Table1[[#This Row],[Latest LWIN]]) -> 11012452000
B45: Bartolo Mascarello, Barolo | C45: 1995 | D45: 12x75 | E45: 3850 | F45: 362.6 | G45: 1 | H45: 11012451995 | I45: =HYPERLINK("https://app.liv-ex.com/#/wine-page?lwin11="&Table1[[#This Row],[Latest LWIN]],Table1[[#This Row],[Latest LWIN]]) -> 11012451995
B46: Bibi Graetz, Colore | C46: 2018 | D46: 3x75 | E46: 370 | F46: 139.4 | G46: 5 | H46: 12269082018 | I46: =HYPERLINK("https://app.liv-ex.com/#/wine-page?lwin11="&Table1[[#This Row],[Latest LWIN]],Table1[[#This Row],[Latest LWIN]]) -> 12269082018
B47: Bibi Graetz, Colore | C47: 2018 | D47: 1x150 | E47: 272 | F47: 307.4 | G47: 5 | H47: 12269082018 | I47: =HYPERLINK("https://app.liv-ex.com/#/wine-page?lwin11="&Table1[[#This Row],[Latest LWIN]],Table1[[#This Row],[Latest LWIN]]) -> 12269082018
B48: Bibi Graetz, Colore | C48: 2016 | D48: 3x75 | E48: 517 | F48: 194.7 | G48: 10 | H48: 12269082016 | I48: =HYPERLINK("https://app.liv-ex.com/#/wine-page?lwin11="&Table1[[#This Row],[Latest LWIN]],Table1[[#This Row],[Latest LWIN]]) -> 12269082016
B49: Bibi Graetz, Colore | C49: 2015 | D49: 1x150 | E49: 485 | F49: 548.1 | G49: 1 | H49: 12269082015 | I49: =HYPERLINK("https://app.liv-ex.com/#/wine-page?lwin11="&Table1[[#This Row],[Latest LWIN]],Table1[[#This Row],[Latest LWIN]]) -> 12269082015
B50: Bibi Graetz, Colore | C50: 2015 | D50: 1x300 | E50: 906 | F50: 1023.8 | G50: 1 | H50: 12269082015 | I50: =HYPERLINK("https://app.liv-ex.com/#/wine-page?lwin11="&Table1[[#This Row],[Latest LWIN]],Table1[[#This Row],[Latest LWIN]]) -> 12269082015
B51: Bibi Graetz, Colore | C51: 2015 | D51: 3x75 | E51: 661 | F51: 249 | G51: 1 | H51: 12269082015 | I51: =HYPERLINK("https://app.liv-ex.com/#/wine-page?lwin11="&Table1[[#This Row],[Latest LWIN]],Table1[[#This Row],[Latest LWIN]]) -> 12269082015
B52: Bibi Graetz, Colore | C52: 2005 | D52: 6x75 | E52: 1869 | F52: 352 | G52: 1 | H52: 12269082005 | I52: =HYPERLINK("https://app.liv-ex.com/#/wine-page?lwin11="&Table1[[#This Row],[Latest LWIN]],Table1[[#This Row],[Latest LWIN]]) -> 12269082005
B53: Biondi Santi, Brunello Montalcino Riserva | C53: 2012 | D53: 6x75 | E53: 1860 | F53: 350.3 | G53: 1 | H53: 11746872012 | I53: =HYPERLINK("https://app.liv-ex.com/#/wine-page?lwin11="&Table1[[#This Row],[Latest LWIN]],Table1[[#This Row],[Latest LWIN]]) -> 11746872012
B54: Biondi Santi, Brunello Montalcino Riserva | C54: 2012 | D54: 3x75 | E54: 887 | F54: 334.1 | G54: 11 | H54: 11746872012 | I54: =HYPERLINK("https://app.liv-ex.com/#/wine-page?lwin11="&Table1[[#This Row],[Latest LWIN]],Table1[[#This Row],[Latest LWIN]]) -> 11746872012
B55: Biondi Santi, Brunello Montalcino Riserva | C55: 2010 | D55: 6x75 | E55: 2145 | F55: 404 | G55: 1 | H55: 11746872010 | I55: =HYPERLINK("https://app.liv-ex.com/#/wine-page?lwin11="&Table1[[#This Row],[Latest LWIN]],Table1[[#This Row],[Latest LWIN]]) -> 11746872010
B56: Biondi Santi, Brunello Montalcino Riserva | C56: 2006 | D56: 3x75 | E56: 990 | F56: 372.9 | G56: 1 | H56: 11746872006 | I56: =HYPERLINK("https://app.liv-ex.com/#/wine-page?lwin11="&Table1[[#This Row],[Latest LWIN]],Table1[[#This Row],[Latest LWIN]]) -> 11746872006
B57: Biondi Santi, Brunello Montalcino Riserva | C57: 1970 | D57: 6x75 | E57: 1523 | F57: 286.8 | G57: 4 | H57: 11746871970 | I57: =HYPERLINK("https://app.liv-ex.com/#/wine-page?lwin11="&Table1[[#This Row],[Latest LWIN]],Table1[[#This Row],[Latest LWIN]]) -> 11746871970
B58: Canalicchio di Sopra, Brunello Montalcino | C58: 2015 | D58: 6x75 | E58: 239 | F58: 45 | G58: 15 | H58: 11291822015 | I58: =HYPERLINK("https://app.liv-ex.com/#/wine-page?lwin11="&Table1[[#This Row],[Latest LWIN]],Table1[[#This Row],[Latest LWIN]]) -> 11291822015
B59: Canalicchio di Sopra, Brunello Montalcino | C59: 2014 | D59: 6x75 | E59: 199 | F59: 37.5 | G59: 6 | H59: 11291822014 | I59: =HYPERLINK("https://app.liv-ex.com/#/wine-page?lwin11="&Table1[[#This Row],[Latest LWIN]],Table1[[#This Row],[Latest LWIN]]) -> 11291822014
B60: Cappellano, Barolo Pie Rupestris | C60: 2015 | D60: 6x75 | E60: 893 | F60: 168.2 | G60: 2 | H60: 13174662015 | I60: =HYPERLINK("https://app.liv-ex.com/#/wine-page?lwin11="&Table1[[#This Row],[Latest LWIN]],Table1[[#This Row],[Latest LWIN]]) -> 13174662015
B61: Cappellano, Barolo Pie Rupestris | C61: 2015 | D61: 6x75 | E61: 1034 | F61: 194.7 | G61: 2 | H61: 13174662015 | I61: =HYPERLINK("https://app.liv-ex.com/#/wine-page?lwin11="&Table1[[#This Row],[Latest LWIN]],Table1[[#This Row],[Latest LWIN]]) -> 13174662015
B62: Cappellano, Barolo Pie Rupestris | C62: 2015 | D62: 6x75 | E62: 848 | F62: 159.7 | G62: 2 | H62: 13174662015 | I62: =HYPERLINK("https://app.liv-ex.com/#/wine-page?lwin11="&Table1[[#This Row],[Latest LWIN]],Table1[[#This Row],[Latest LWIN]]) -> 13174662015
B63: Cappellano, Barolo Pie Rupestris | C63: 2015 | D63: 1x150 | E63: 380 | F63: 429.4 | G63: 2 | H63: 13174662015 | I63: =HYPERLINK("https://app.liv-ex.com/#/wine-page?lwin11="&Table1[[#This Row],[Latest LWIN]],Table1[[#This Row],[Latest LWIN]]) -> 13174662015
B64: Cappellano, Barolo Pie Rupestris | C64: 2014 | D64: 6x75 | E64: 1100 | F64: 207.2 | G64: 1 | H64: 13174662014 | I64: =HYPERLINK("https://app.liv-ex.com/#/wine-page?lwin11="&Table1[[#This Row],[Latest LWIN]],Table1[[#This Row],[Latest LWIN]]) -> 13174662014
B65: Cappellano, Barolo Pie Rupestris | C65: 2014 | D65: 6x75 | E65: 840 | F65: 158.2 | G65: 10 | H65: 13174662014 | I65: =HYPERLINK("https://app.liv-ex.com/#/wine-page?lwin11="&Table1[[#This Row],[Latest LWIN]],Table1[[#This Row],[Latest LWIN]]) -> 13174662014
B66: Cappellano, Barolo Pie Rupestris | C66: 2013 | D66: 6x75 | E66: 1650 | F66: 310.8 | G66: 1 | H66: 13174662013 | I66: =HYPERLINK("https://app.liv-ex.com/#/wine-page?lwin11="&Table1[[#This Row],[Latest LWIN]],Table1[[#This Row],[Latest LWIN]]) -> 13174662013
B67: Cappellano, Barolo Pie Rupestris | C67: 2012 | D67: 12x75 | E67: 2300 | F67: 216.6 | G67: 1 | H67: 13174662012 | I67: =HYPERLINK("https://app.liv-ex.com/#/wine-page?lwin11="&Table1[[#This Row],[Latest LWIN]],Table1[[#This Row],[Latest LWIN]]) -> 13174662012
B68: Cappellano, Barolo Pie Rupestris | C68: 2012 | D68: 6x75 | E68: 1100 | F68: 207.2 | G68: 4 | H68: 13174662012 | I68: =HYPERLINK("https://app.liv-ex.com/#/wine-page?lwin11="&Table1[[#This Row],[Latest LWIN]],Table1[[#This Row],[Latest LWIN]]) -> 13174662012
B69: Cappellano, Barolo Pie Rupestris | C69: 2011 | D69: 3x150 | E69: 1350 | F69: 508.5 | G69: 1 | H69: 13174662011 | I69: =HYPERLINK("https://app.liv-ex.com/#/wine-page?lwin11="&Table1[[#This Row],[Latest LWIN]],Table1[[#This Row],[Latest LWIN]]) -> 13174662011
B70: Cappellano, Barolo Pie Rupestris | C70: 1999 | D70: 12x75 | E70: 4250 | F70: 400.2 | G70: 1 | H70: 13174661999 | I70: =HYPERLINK("https://app.liv-ex.com/#/wine-page?lwin11="&Table1[[#This Row],[Latest LWIN]],Table1[[#This Row],[Latest LWIN]]) -> 13174661999
B71: Casanova di Neri, Brunello Montalcino Tenuta Nuova | C71: 2015 | D71: 6x75 | E71: 337 | F71: 63.5 | G71: 35 | H71: 10971192015 | I71: =HYPERLINK("https://app.liv-ex.com/#/wine-page?lwin11="&Table1[[#This Row],[Latest LWIN]],Table1[[#This Row],[Latest LWIN]]) -> 10971192015
B72: Casanova di Neri, Brunello Montalcino Tenuta Nuova | C72: 2012 | D72: 1x600 | E72: 589 | F72: 665.6 | G72: 1 | H72: 10971192012 | I72: =HYPERLINK("https://app.liv-ex.com/#/wine-page?lwin11="&Table1[[#This Row],[Latest LWIN]],Table1[[#This Row],[Latest LWIN]]) -> 10971192012
B73: Casanova di Neri, Brunello Montalcino Tenuta Nuova | C73: 2012 | D73: 1x150 | E73: 123 | F73: 139 | G73: 7 | H73: 10971192012 | I73: =HYPERLINK("https://app.liv-ex.com/#/wine-page?lwin11="&Table1[[#This Row],[Latest LWIN]],Table1[[#This Row],[Latest LWIN]]) -> 10971192012
B74: Casanova di Neri, Brunello Montalcino Tenuta Nuova | C74: 2012 | D74: 6x75 | E74: 397 | F74: 74.8 | G74: 19 | H74: 10971192012 | I74: =HYPERLINK("https://app.liv-ex.com/#/wine-page?lwin11="&Table1[[#This Row],[Latest LWIN]],Table1[[#This Row],[Latest LWIN]]) -> 10971192012
B75: Casanova di Neri, Brunello Montalcino Tenuta Nuova | C75: 2011 | D75: 1x150 | E75: 107 | F75: 120.9 | G75: 6 | H75: 10971192011 | I75: =HYPERLINK("https://app.liv-ex.com/#/wine-page?lwin11="&Table1[[#This Row],[Latest LWIN]],Table1[[#This Row],[Latest LWIN]]) -> 10971192011
B76: Casanova di Neri, Brunello Montalcino Tenuta Nuova | C76: 2010 | D76: 6x75 | E76: 832 | F76: 156.7 | G76: 1 | H76: 10971192010 | I76: =HYPERLINK("https://app.liv-ex.com/#/wine-page?lwin11="&Table1[[#This Row],[Latest LWIN]],Table1[[#This Row],[Latest LWIN]]) -> 10971192010
B77: Casanova di Neri, Brunello Montalcino Tenuta Nuova | C77: 2007 | D77: 6x75 | E77: 360 | F77: 67.8 | G77: 2 | H77: 10971192007 | I77: =HYPERLINK("https://app.liv-ex.com/#/wine-page?lwin11="&Table1[[#This Row],[Latest LWIN]],Table1[[#This Row],[Latest LWIN]]) -> 10971192007
B78: Castello Di Ama, Apparita | C78: 2016 | D78: 6x75 | E78: 895 | F78: 168.6 | G78: 4 | H78: 10973662016 | I78: =HYPERLINK("https://app.liv-ex.com/#/wine-page?lwin11="&Table1[[#This Row],[Latest LWIN]],Table1[[#This Row],[Latest LWIN]]) -> 10973662016
B79: Castello Di Ama, Apparita | C79: 2016 | D79: 6x75 | E79: 800 | F79: 150.7 | G79: 1 | H79: 10973662016 | I79: =HYPERLINK("https://app.liv-ex.com/#/wine-page?lwin11="&Table1[[#This Row],[Latest LWIN]],Table1[[#This Row],[Latest LWIN]]) -> 10973662016
B80: Castello Di Ama, Apparita | C80: 2016 | D80: 1x300 | E80: 725 | F80: 819.3 | G80: 3 | H80: 10973662016 | I80: =HYPERLINK("https://app.liv-ex.com/#/wine-page?lwin11="&Table1[[#This Row],[Latest LWIN]],Table1[[#This Row],[Latest LWIN]]) -> 10973662016
B81: Castello Di Ama, Apparita | C81: 2016 | D81: 1x150 | E81: 350 | F81: 395.5 | G81: 3 | H81: 10973662016 | I81: =HYPERLINK("https://app.liv-ex.com/#/wine-page?lwin11="&Table1[[#This Row],[Latest LWIN]],Table1[[#This Row],[Latest LWIN]]) -> 10973662016
B82: Castello Di Ama, Apparita | C82: 2016 | D82: 1x75 | E82: 162 | F82: 183.1 | G82: 5 | H82: 10973662016 | I82: =HYPERLINK("https://app.liv-ex.com/#/wine-page?lwin11="&Table1[[#This Row],[Latest LWIN]],Table1[[#This Row],[Latest LWIN]]) -> 10973662016
B83: Castello Di Ama, Apparita | C83: 2015 | D83: 6x75 | E83: 675 | F83: 127.1 | G83: 6 | H83: 10973662015 | I83: =HYPERLINK("https://app.liv-ex.com/#/wine-page?lwin11="&Table1[[#This Row],[Latest LWIN]],Table1[[#This Row],[Latest LWIN]]) -> 10973662015
B84: Castello Di Ama, Apparita | C84: 2015 | D84: 1x75 | E84: 112 | F84: 126.6 | G84: 4 | H84: 10973662015 | I84: =HYPERLINK("https://app.liv-ex.com/#/wine-page?lwin11="&Table1[[#This Row],[Latest LWIN]],Table1[[#This Row],[Latest LWIN]]) -> 10973662015
B85: Castello Di Ama, Apparita | C85: 2009 | D85: 6x75 | E85: 630 | F85: 118.7 | G85: 1 | H85: 10973662009 | I85: =HYPERLINK("https://app.liv-ex.com/#/wine-page?lwin11="&Table1[[#This Row],[Latest LWIN]],Table1[[#This Row],[Latest LWIN]]) -> 10973662009
B86: Castello Di Ama, Apparita | C86: 1998 | D86: 3x75 | E86: 315 | F86: 118.7 | G86: 1 | H86: 10973661998 | I86: =HYPERLINK("https://app.liv-ex.com/#/wine-page?lwin11="&Table1[[#This Row],[Latest LWIN]],Table1[[#This Row],[Latest LWIN]]) -> 10973661998
B87: Cavallotto, Barolo Bricco Boschis | C87: 2016 | D87: 6x75 | E87: 326 | F87: 61.4 | G87: 1 | H87: 10975132016 | I87: =HYPERLINK("https://app.liv-ex.com/#/wine-page?lwin11="&Table1[[#This Row],[Latest LWIN]],Table1[[#This Row],[Latest LWIN]]) -> 10975132016
B88: Cavallotto, Barolo Bricco Boschis | C88: 2015 | D88: 6x75 | E88: 259 | F88: 48.8 | G88: 5 | H88: 10975132015 | I88: =HYPERLINK("https://app.liv-ex.com/#/wine-page?lwin11="&Table1[[#This Row],[Latest LWIN]],Table1[[#This Row],[Latest LWIN]]) -> 10975132015
B89: Cavallotto, Barolo Bricco Boschis | C89: 2013 | D89: 6x75 | E89: 337 | F89: 63.5 | G89: 4 | H89: 10975132013 | I89: =HYPERLINK("https://app.liv-ex.com/#/wine-page?lwin11="&Table1[[#This Row],[Latest LWIN]],Table1[[#This Row],[Latest LWIN]]) -> 10975132013
B90: Cavallotto, Barolo Bricco Boschis | C90: 2004 | D90: 12x75 | E90: 950 | F90: 89.5 | G90: 1 | H90: 10975132004 | I90: =HYPERLINK("https://app.liv-ex.com/#/wine-page?lwin11="&Table1[[#This Row],[Latest LWIN]],Table1[[#This Row],[Latest LWIN]]) -> 10975132004
B91: Ciacci Piccolomini d'Aragona, Brunello di Montalcino | C91: 2015 | D91: 6x75 | E91: 169 | F91: 31.8 | G91: 13 | H91: 10978582015 | I91: =HYPERLINK("https://app.liv-ex.com/#/wine-page?lwin11="&Table1[[#This Row],[Latest LWIN]],Table1[[#This Row],[Latest LWIN]]) -> 10978582015
B92: Ciacci Piccolomini d'Aragona, Brunello di Montalcino | C92: 2012 | D92: 6x75 | E92: 169 | F92: 31.8 | G92: 10 | H92: 10978582012 | I92: =HYPERLINK("https://app.liv-ex.com/#/wine-page?lwin11="&Table1[[#This Row],[Latest LWIN]],Table1[[#This Row],[Latest LWIN]]) -> 10978582012
B93: Ciacci Piccolomini, Brunello Montalcino Pianrosso | C93: 2015 | D93: 1x150 | E93: 104 | F93: 117.5 | G93: 1 | H93: 10978742015 | I93: =HYPERLINK("https://app.liv-ex.com/#/wine-page?lwin11="&Table1[[#This Row],[Latest LWIN]],Table1[[#This Row],[Latest LWIN]]) -> 10978742015
B94: Ciacci Piccolomini, Brunello Montalcino Pianrosso | C94: 2013 | D94: 6x75 | E94: 230 | F94: 43.3 | G94: 16 | H94: 10978742013 | I94: =HYPERLINK("https://app.liv-ex.com/#/wine-page?lwin11="&Table1[[#This Row],[Latest LWIN]],Table1[[#This Row],[Latest LWIN]]) -> 10978742013
B95: Ciacci Piccolomini, Brunello Montalcino Pianrosso | C95: 2012 | D95: 1x500 | E95: 248 | F95: 280.3 | G95: 3 | H95: 10978742012 | I95: =HYPERLINK("https://app.liv-ex.com/#/wine-page?lwin11="&Table1[[#This Row],[Latest LWIN]],Table1[[#This Row],[Latest LWIN]]) -> 10978742012
B96: Ciacci Piccolomini, Brunello Montalcino Pianrosso | C96: 2006 | D96: 3x150 | E96: 300 | F96: 113 | G96: 1 | H96: 10978742006 | I96: =HYPERLINK("https://app.liv-ex.com/#/wine-page?lwin11="&Table1[[#This Row],[Latest LWIN]],Table1[[#This Row],[Latest LWIN]]) -> 10978742006
B97: Elio Grasso, Barolo Runcot Riserva | C97: 2013 | D97: 1x150 | E97: 317 | F97: 358.2 | G97: 6 | H97: 11001922013 | I97: =HYPERLINK("https://app.liv-ex.com/#/wine-page?lwin11="&Table1[[#This Row],[Latest LWIN]],Table1[[#This Row],[Latest LWIN]]) -> 11001922013
B98: Elio Grasso, Barolo Runcot Riserva | C98: 2013 | D98: 1x150 | E98: 395 | F98: 446.4 | G98: 7 | H98: 11001922013 | I98: =HYPERLINK("https://app.liv-ex.com/#/wine-page?lwin11="&Table1[[#This Row],[Latest LWIN]],Table1[[#This Row],[Latest LWIN]]) -> 11001922013
B99: Elio Grasso, Barolo Runcot Riserva | C99: 2010 | D99: 6x75 | E99: 780 | F99: 146.9 | G99: 2 | H99: 11001922010 | I99: =HYPERLINK("https://app.liv-ex.com/#/wine-page?lwin11="&Table1[[#This Row],[Latest LWIN]],Table1[[#This Row],[Latest LWIN]]) -> 11001922010
B100: Elio Grasso, Barolo Runcot Riserva | C100: 2008 | D100: 6x75 | E100: 670 | F100: 126.2 | G100: 2 | H100: 11001922008 | I100: =HYPERLINK("https://app.liv-ex.com/#/wine-page?lwin11="&Table1[[#This Row],[Latest LWIN]],Table1[[#This Row],[Latest LWIN]]) -> 11001922008
B101: Elvio Cogno, Barolo Ravera | C101: 2016 | D101: 6x75 | E101: 354 | F101: 66.7 | G101: 10 | H101: 11643762016 | I101: =HYPERLINK("https://app.liv-ex.com/#/wine-page?lwin11="&Table1[[#This Row],[Latest LWIN]],Table1[[#This Row],[Latest LWIN]]) -> 11643762016
B102: Elvio Cogno, Barolo Ravera | C102: 2015 | D102: 6x75 | E102: 248 | F102: 46.7 | G102: 1 | H102: 11643762015 | I102: =HYPERLINK("https://app.liv-ex.com/#/wine-page?lwin11="&Table1[[#This Row],[Latest LWIN]],Table1[[#This Row],[Latest LWIN]]) -> 11643762015
B103: Elvio Cogno, Barolo Ravera | C103: 2014 | D103: 6x75 | E103: 226 | F103: 42.6 | G103: 5 | H103: 11643762014 | I103: =HYPERLINK("https://app.liv-ex.com/#/wine-page?lwin11="&Table1[[#This Row],[Latest LWIN]],Table1[[#This Row],[Latest LWIN]]) -> 11643762014
B104: Elvio Cogno, Barolo Ravera | C104: 2013 | D104: 6x75 | E104: 212 | F104: 39.9 | G104: 2 | H104: 11643762013 | I104: =HYPERLINK("https://app.liv-ex.com/#/wine-page?lwin11="&Table1[[#This Row],[Latest LWIN]],Table1[[#This Row],[Latest LWIN]]) -> 11643762013
B105: Elvio Cogno, Barolo Ravera | C105: 2012 | D105: 6x75 | E105: 300 | F105: 56.5 | G105: 1 | H105: 11643762012 | I105: =HYPERLINK("https://app.liv-ex.com/#/wine-page?lwin11="&Table1[[#This Row],[Latest LWIN]],Table1[[#This Row],[Latest LWIN]]) -> 11643762012
B106: Fontodi, Chianti Classico Gran Selezione Vigna Sorbo | C106: 2015 | D106: 6x75 | E106: 286 | F106: 53.9 | G106: 4 | H106: 13348562015 | I106: =HYPERLINK("https://app.liv-ex.com/#/wine-page?lwin11="&Table1[[#This Row],[Latest LWIN]],Table1[[#This Row],[Latest LWIN]]) -> 13348562015
B107: Fontodi, Chianti Classico Gran Selezione Vigna Sorbo | C107: 2014 | D107: 1x300 | E107: 150 | F107: 169.5 | G107: 1 | H107: 13348562014 | I107: =HYPERLINK("https://app.liv-ex.com/#/wine-page?lwin11="&Table1[[#This Row],[Latest LWIN]],Table1[[#This Row],[Latest LWIN]]) -> 13348562014
B108: Fontodi, Chianti Classico Gran Selezione Vigna Sorbo | C108: 2014 | D108: 6x150 | E108: 495 | F108: 93.2 | G108: 2 | H108: 13348562014 | I108: =HYPERLINK("https://app.liv-ex.com/#/wine-page?lwin11="&Table1[[#This Row],[Latest LWIN]],Table1[[#This Row],[Latest LWIN]]) -> 13348562014
B109: Fontodi, Chianti Classico Gran Selezione Vigna Sorbo | C109: 2013 | D109: 1x150 | E109: 120 | F109: 135.6 | G109: 5 | H109: 13348562013 | I109: =HYPERLINK("https://app.liv-ex.com/#/wine-page?lwin11="&Table1[[#This Row],[Latest LWIN]],Table1[[#This Row],[Latest LWIN]]) -> 13348562013
B110: Fontodi, Chianti Classico Gran Selezione Vigna Sorbo | C110: 2013 | D110: 6x75 | E110: 295 | F110: 55.6 | G110: 1 | H110: 13348562013 | I110: =HYPERLINK("https://app.liv-ex.com/#/wine-page?lwin11="&Table1[[#This Row],[Latest LWIN]],Table1[[#This Row],[Latest LWIN]]) -> 13348562013
B111: Fontodi, Chianti Classico Gran Selezione Vigna Sorbo | C111: 2012 | D111: 6x75 | E111: 240 | F111: 45.2 | G111: 1 | H111: 13348562012 | I111: =HYPERLINK("https://app.liv-ex.com/#/wine-page?lwin11="&Table1[[#This Row],[Latest LWIN]],Table1[[#This Row],[Latest LWIN]]) -> 13348562012
B112: Fontodi, Flaccianello delle Pieve | C112: 2016 | D112: 6x75 | E112: 745 | F112: 140.3 | G112: 1 | H112: 10992562016 | I112: =HYPERLINK("https://app.liv-ex.com/#/wine-page?lwin11="&Table1[[#This Row],[Latest LWIN]],Table1[[#This Row],[Latest LWIN]]) -> 10992562016
B113: Fontodi, Flaccianello delle Pieve | C113: 2016 | D113: 1x150 | E113: 317 | F113: 358.2 | G113: 3 | H113: 10992562016 | I113: =HYPERLINK("https://app.liv-ex.com/#/wine-page?lwin11="&Table1[[#This Row],[Latest LWIN]],Table1[[#This Row],[Latest LWIN]]) -> 10992562016
B114: Fontodi, Flaccianello delle Pieve | C114: 2016 | D114: 1x300 | E114: 721 | F114: 814.8 | G114: 1 | H114: 10992562016 | I114: =HYPERLINK("https://app.liv-ex.com/#/wine-page?lwin11="&Table1[[#This Row],[Latest LWIN]],Table1[[#This Row],[Latest LWIN]]) -> 10992562016
B115: Fontodi, Flaccianello delle Pieve | C115: 2015 | D115: 6x75 | E115: 451 | F115: 84.9 | G115: 1 | H115: 10992562015 | I115: =HYPERLINK("https://app.liv-ex.com/#/wine-page?lwin11="&Table1[[#This Row],[Latest LWIN]],Table1[[#This Row],[Latest LWIN]]) -> 10992562015
B116: Fontodi, Flaccianello delle Pieve | C116: 2013 | D116: 6x75 | E116: 415 | F116: 78.2 | G116: 1 | H116: 10992562013 | I116: =HYPERLINK("https://app.liv-ex.com/#/wine-page?lwin11="&Table1[[#This Row],[Latest LWIN]],Table1[[#This Row],[Latest LWIN]]) -> 10992562013
B117: Fontodi, Flaccianello delle Pieve | C117: 2013 | D117: 6x75 | E117: 330 | F117: 62.2 | G117: 1 | H117: 10992562013 | I117: =HYPERLINK("https://app.liv-ex.com/#/wine-page?lwin11="&Table1[[#This Row],[Latest LWIN]],Table1[[#This Row],[Latest LWIN]]) -> 10992562013
B118: Fontodi, Flaccianello delle Pieve | C118: 2012 | D118: 6x75 | E118: 381 | F118: 71.8 | G118: 5 | H118: 10992562012 | I118: =HYPERLINK("https://app.liv-ex.com/#/wine-page?lwin11="&Table1[[#This Row],[Latest LWIN]],Table1[[#This Row],[Latest LWIN]]) -> 10992562012
B119: Fontodi, Flaccianello delle Pieve | C119: 2012 | D119: 1x150 | E119: 136 | F119: 153.7 | G119: 5 | H119: 10992562012 | I119: =HYPERLINK("https://app.liv-ex.com/#/wine-page?lwin11="&Table1[[#This Row],[Latest LWIN]],Table1[[#This Row],[Latest LWIN]]) -> 10992562012
B120: Fontodi, Flaccianello delle Pieve | C120: 2012 | D120: 1x300 | E120: 290 | F120: 327.7 | G120: 3 | H120: 10992562012 | I120: =HYPERLINK("https://app.liv-ex.com/#/wine-page?lwin11="&Table1[[#This Row],[Latest LWIN]],Table1[[#This Row],[Latest LWIN]]) -> 10992562012
B121: Fontodi, Flaccianello delle Pieve | C121: 2012 | D121: 1x600 | E121: 549 | F121: 620.4 | G121: 3 | H121: 10992562012 | I121: =HYPERLINK("https://app.liv-ex.com/#/wine-page?lwin11="&Table1[[#This Row],[Latest LWIN]],Table1[[#This Row],[Latest LWIN]]) -> 10992562012
B122: Fontodi, Flaccianello delle Pieve | C122: 2011 | D122: 6x75 | E122: 408 | F122: 76.8 | G122: 10 | H122: 10992562011 | I122: =HYPERLINK("https://app.liv-ex.com/#/wine-page?lwin11="&Table1[[#This Row],[Latest LWIN]],Table1[[#This Row],[Latest LWIN]]) -> 10992562011
B123: Fontodi, Flaccianello delle Pieve | C123: 2011 | D123: 1x150 | E123: 141 | F123: 159.3 | G123: 10 | H123: 10992562011 | I123: =HYPERLINK("https://app.liv-ex.com/#/wine-page?lwin11="&Table1[[#This Row],[Latest LWIN]],Table1[[#This Row],[Latest LWIN]]) -> 10992562011
B124: Fontodi, Flaccianello delle Pieve | C124: 2011 | D124: 1x300 | E124: 290 | F124: 327.7 | G124: 5 | H124: 10992562011 | I124: =HYPERLINK("https://app.liv-ex.com/#/wine-page?lwin11="&Table1[[#This Row],[Latest LWIN]],Table1[[#This Row],[Latest LWIN]]) -> 10992562011
B125: Fontodi, Flaccianello delle Pieve | C125: 2010 | D125: 12x75 | E125: 912 | F125: 85.9 | G125: 1 | H125: 10992562010 | I125: =HYPERLINK("https://app.liv-ex.com/#/wine-page?lwin11="&Table1[[#This Row],[Latest LWIN]],Table1[[#This Row],[Latest LWIN]]) -> 10992562010
B126: Fontodi, Flaccianello delle Pieve | C126: 2010 | D126: 1x150 | E126: 172 | F126: 194.4 | G126: 5 | H126: 10992562010 | I126: =HYPERLINK("https://app.liv-ex.com/#/wine-page?lwin11="&Table1[[#This Row],[Latest LWIN]],Table1[[#This Row],[Latest LWIN]]) -> 10992562010
B127: Fontodi, Flaccianello delle Pieve | C127: 2010 | D127: 1x300 | E127: 354 | F127: 400 | G127: 2 | H127: 10992562010 | I127: =HYPERLINK("https://app.liv-ex.com/#/wine-page?lwin11="&Table1[[#This Row],[Latest LWIN]],Table1[[#This Row],[Latest LWIN]]) -> 10992562010
B128: Fontodi, Flaccianello delle Pieve | C128: 2010 | D128: 6x75 | E128: 415 | F128: 78.2 | G128: 1 | H128: 10992562010 | I128: =HYPERLINK("https://app.liv-ex.com/#/wine-page?lwin11="&Table1[[#This Row],[Latest LWIN]],Table1[[#This Row],[Latest LWIN]]) -> 10992562010
B129: Fontodi, Flaccianello delle Pieve | C129: 2009 | D129: 6x75 | E129: 381 | F129: 71.8 | G129: 4 | H129: 10992562009 | I129: =HYPERLINK("https://app.liv-ex.com/#/wine-page?lwin11="&Table1[[#This Row],[Latest LWIN]],Table1[[#This Row],[Latest LWIN]]) -> 10992562009
B130: Fontodi, Flaccianello delle Pieve | C130: 2009 | D130: 1x150 | E130: 136 | F130: 153.7 | G130: 2 | H130: 10992562009 | I130: =HYPERLINK("https://app.liv-ex.com/#/wine-page?lwin11="&Table1[[#This Row],[Latest LWIN]],Table1[[#This Row],[Latest LWIN]]) -> 10992562009
B131: Fontodi, Flaccianello delle Pieve | C131: 2006 | D131: 1x150 | E131: 145 | F131: 163.9 | G131: 1 | H131: 10992562006 | I131: =HYPERLINK("https://app.liv-ex.com/#/wine-page?lwin11="&Table1[[#This Row],[Latest LWIN]],Table1[[#This Row],[Latest LWIN]]) -> 10992562006
B132: Fuligni, Brunello Montalcino | C132: 2014 | D132: 6x75 | E132: 165 | F132: 31.1 | G132: 60 | H132: 10995332014 | I132: =HYPERLINK("https://app.liv-ex.com/#/wine-page?lwin11="&Table1[[#This Row],[Latest LWIN]],Table1[[#This Row],[Latest LWIN]]) -> 10995332014
B133: Fuligni, Brunello Montalcino | C133: 2014 | D133: 6x75 | E133: 178 | F133: 33.5 | G133: 5 | H133: 10995332014 | I133: =HYPERLINK("https://app.liv-ex.com/#/wine-page?lwin11="&Table1[[#This Row],[Latest LWIN]],Table1[[#This Row],[Latest LWIN]]) -> 10995332014
B134: Fuligni, Brunello Montalcino | C134: 2014 | D134: 1x150 | E134: 62 | F134: 70.1 | G134: 59 | H134: 10995332014 | I134: =HYPERLINK("https://app.liv-ex.com/#/wine-page?lwin11="&Table1[[#This Row],[Latest LWIN]],Table1[[#This Row],[Latest LWIN]]) -> 10995332014
B135: Fuligni, Brunello Montalcino | C135: 2013 | D135: 1x150 | E135: 76 | F135: 85.9 | G135: 2 | H135: 10995332013 | I135: =HYPERLINK("https://app.liv-ex.com/#/wine-page?lwin11="&Table1[[#This Row],[Latest LWIN]],Table1[[#This Row],[Latest LWIN]]) -> 10995332013
B136: Fuligni, Brunello Montalcino | C136: 2013 | D136: 6x75 | E136: 463 | F136: 87.2 | G136: 4 | H136: 10995332013 | I136: =HYPERLINK("https://app.liv-ex.com/#/wine-page?lwin11="&Table1[[#This Row],[Latest LWIN]],Table1[[#This Row],[Latest LWIN]]) -> 10995332013
B137: Fuligni, Brunello Montalcino | C137: 2013 | D137: 1x150 | E137: 174 | F137: 196.6 | G137: 8 | H137: 10995332013 | I137: =HYPERLINK("https://app.liv-ex.com/#/wine-page?lwin11="&Table1[[#This Row],[Latest LWIN]],Table1[[#This Row],[Latest LWIN]]) -> 10995332013
B138: Fuligni, Brunello Montalcino | C138: 2013 | D138: 6x75 | E138: 450 | F138: 84.8 | G138: 67 | H138: 10995332013 | I138: =HYPERLINK("https://app.liv-ex.com/#/wine-page?lwin11="&Table1[[#This Row],[Latest LWIN]],Table1[[#This Row],[Latest LWIN]]) -> 10995332013
B139: Fuligni, Brunello Montalcino | C139: 2013 | D139: 12x75 | E139: 437 | F139: 41.2 | G139: 3 | H139: 10995332013 | I139: =HYPERLINK("https://app.liv-ex.com/#/wine-page?lwin11="&Table1[[#This Row],[Latest LWIN]],Table1[[#This Row],[Latest LWIN]]) -> 10995332013
B140: Fuligni, Brunello Montalcino | C140: 2013 | D140: 12x75 | E140: 410 | F140: 38.6 | G140: 24 | H140: 10995332013 | I140: =HYPERLINK("https://app.liv-ex.com/#/wine-page?lwin11="&Table1[[#This Row],[Latest LWIN]],Table1[[#This Row],[Latest LWIN]]) -> 10995332013
B141: Gaja, Barbaresco | C141: 2016 | D141: 3x150 | E141: 737 | F141: 277.6 | G141: 2 | H141: 10996052016 | I141: =HYPERLINK("https://app.liv-ex.com/#/wine-page?lwin11="&Table1[[#This Row],[Latest LWIN]],Table1[[#This Row],[Latest LWIN]]) -> 10996052016
B142: Gaja, Barbaresco | C142: 2016 | D142: 6x75 | E142: 691 | F142: 130.1 | G142: 2 | H142: 10996052016 | I142: =HYPERLINK("https://app.liv-ex.com/#/wine-page?lwin11="&Table1[[#This Row],[Latest LWIN]],Table1[[#This Row],[Latest LWIN]]) -> 10996052016
B143: Gaja, Barbaresco | C143: 2015 | D143: 6x75 | E143: 750 | F143: 141.3 | G143: 4 | H143: 10996052015 | I143: =HYPERLINK("https://app.liv-ex.com/#/wine-page?lwin11="&Table1[[#This Row],[Latest LWIN]],Table1[[#This Row],[Latest LWIN]]) -> 10996052015
B144: Gaja, Barbaresco | C144: 2014 | D144: 6x75 | E144: 700 | F144: 131.8 | G144: 1 | H144: 10996052014 | I144: =HYPERLINK("https://app.liv-ex.com/#/wine-page?lwin11="&Table1[[#This Row],[Latest LWIN]],Table1[[#This Row],[Latest LWIN]]) -> 10996052014
B145: Gaja, Barbaresco | C145: 2012 | D145: 6x75 | E145: 675 | F145: 127.1 | G145: 1 | H145: 10996052012 | I145: =HYPERLINK("https://app.liv-ex.com/#/wine-page?lwin11="&Table1[[#This Row],[Latest LWIN]],Table1[[#This Row],[Latest LWIN]]) -> 10996052012
B146: Gaja, Barbaresco | C146: 2011 | D146: 6x75 | E146: 680 | F146: 128.1 | G146: 1 | H146: 10996052011 | I146: =HYPERLINK("https://app.liv-ex.com/#/wine-page?lwin11="&Table1[[#This Row],[Latest LWIN]],Table1[[#This Row],[Latest LWIN]]) -> 10996052011
B147: Gaja, Barbaresco | C147: 2007 | D147: 6x75 | E147: 1006 | F147: 189.5 | G147: 1 | H147: 10996052007 | I147: =HYPERLINK("https://app.liv-ex.com/#/wine-page?lwin11="&Table1[[#This Row],[Latest LWIN]],Table1[[#This Row],[Latest LWIN]]) -> 10996052007
B148: Gaja, Barbaresco | C148: 2005 | D148: 1x75 | E148: 142 | F148: 160.5 | G148: 5 | H148: 10996052005 | I148: =HYPERLINK("https://app.liv-ex.com/#/wine-page?lwin11="&Table1[[#This Row],[Latest LWIN]],Table1[[#This Row],[Latest LWIN]]) -> 10996052005
B149: Gaja, Barbaresco | C149: 2004 | D149: 1x75 | E149: 118 | F149: 133.3 | G149: 1 | H149: 10996052004 | I149: =HYPERLINK("https://app.liv-ex.com/#/wine-page?lwin11="&Table1[[#This Row],[Latest LWIN]],Table1[[#This Row],[Latest LWIN]]) -> 10996052004
B150: Gaja, Barbaresco | C150: 2004 | D150: 6x75 | E150: 979 | F150: 184.4 | G150: 2 | H150: 10996052004 | I150: =HYPERLINK("https://app.liv-ex.com/#/wine-page?lwin11="&Table1[[#This Row],[Latest LWIN]],Table1[[#This Row],[Latest LWIN]]) -> 10996052004
B151: Gaja, Barbaresco | C151: 1996 | D151: 6x75 | E151: 1045 | F151: 196.8 | G151: 1 | H151: 10996051996 | I151: =HYPERLINK("https://app.liv-ex.com/#/wine-page?lwin11="&Table1[[#This Row],[Latest LWIN]],Table1[[#This Row],[Latest LWIN]]) -> 10996051996
B152: Gaja, Costa Russi | C152: 2016 | D152: 6x75 | E152: 1850 | F152: 348.4 | G152: 2 | H152: 10997222016 | I152: =HYPERLINK("https://app.liv-ex.com/#/wine-page?lwin11="&Table1[[#This Row],[Latest LWIN]],Table1[[#This Row],[Latest LWIN]]) -> 10997222016
B153: Gaja, Costa Russi | C153: 2014 | D153: 6x75 | E153: 1590 | F153: 299.5 | G153: 4 | H153: 10997222014 | I153: =HYPERLINK("https://app.liv-ex.com/#/wine-page?lwin11="&Table1[[#This Row],[Latest LWIN]],Table1[[#This Row],[Latest LWIN]]) -> 10997222014
B154: Gaja, Costa Russi | C154: 2013 | D154: 6x75 | E154: 1440 | F154: 271.2 | G154: 4 | H154: 10997222013 | I154: =HYPERLINK("https://app.liv-ex.com/#/wine-page?lwin11="&Table1[[#This Row],[Latest LWIN]],Table1[[#This Row],[Latest LWIN]]) -> 10997222013
B155: Gaja, Costa Russi | C155: 2010 | D155: 3x75 | E155: 650 | F155: 244.8 | G155: 1 | H155: 10997222010 | I155: =HYPERLINK("https://app.liv-ex.com/#/wine-page?lwin11="&Table1[[#This Row],[Latest LWIN]],Table1[[#This Row],[Latest LWIN]]) -> 10997222010
B156: Gaja, Sori San Lorenzo | C156: 2016 | D156: 6x75 | E156: 1858 | F156: 349.9 | G156: 1 | H156: 11748892016 | I156: =HYPERLINK("https://app.liv-ex.com/#/wine-page?lwin11="&Table1[[#This Row],[Latest LWIN]],Table1[[#This Row],[Latest LWIN]]) -> 11748892016
B157: Gaja, Sori San Lorenzo | C157: 2014 | D157: 6x75 | E157: 1590 | F157: 299.5 | G157: 6 | H157: 11748892014 | I157: =HYPERLINK("https://app.liv-ex.com/#/wine-page?lwin11="&Table1[[#This Row],[Latest LWIN]],Table1[[#This Row],[Latest LWIN]]) -> 11748892014
B158: Gaja, Sori San Lorenzo | C158: 2013 | D158: 6x75 | E158: 1801 | F158: 339.2 | G158: 2 | H158: 11748892013 | I158: =HYPERLINK("https://app.liv-ex.com/#/wine-page?lwin11="&Table1[[#This Row],[Latest LWIN]],Table1[[#This Row],[Latest LWIN]]) -> 11748892013
B159: Gaja, Sori San Lorenzo | C159: 2011 | D159: 6x75 | E159: 1250 | F159: 235.4 | G159: 1 | H159: 11748892011 | I159: =HYPERLINK("https://app.liv-ex.com/#/wine-page?lwin11="&Table1[[#This Row],[Latest LWIN]],Table1[[#This Row],[Latest LWIN]]) -> 11748892011
B160: Gaja, Sori San Lorenzo | C160: 1998 | D160: 2x75 | E160: 434 | F160: 245.2 | G160: 1 | H160: 11748891998 | I160: =HYPERLINK("https://app.liv-ex.com/#/wine-page?lwin11="&Table1[[#This Row],[Latest LWIN]],Table1[[#This Row],[Latest LWIN]]) -> 11748891998
B161: Gaja, Sori Tildin | C161: 2016 | D161: 6x75 | E161: 1858 | F161: 349.9 | G161: 1 | H161: 10997772016 | I161: =HYPERLINK("https://app.liv-ex.com/#/wine-page?lwin11="&Table1[[#This Row],[Latest LWIN]],Table1[[#This Row],[Latest LWIN]]) -> 10997772016
B162: Gaja, Sori Tildin | C162: 2014 | D162: 6x75 | E162: 1590 | F162: 299.5 | G162: 7 | H162: 10997772014 | I162: =HYPERLINK("https://app.liv-ex.com/#/wine-page?lwin11="&Table1[[#This Row],[Latest LWIN]],Table1[[#This Row],[Latest LWIN]]) -> 10997772014
B163: Gaja, Sori Tildin | C163: 2011 | D163: 6x75 | E163: 1580 | F163: 297.6 | G163: 1 | H163: 10997772011 | I163: =HYPERLINK("https://app.liv-ex.com/#/wine-page?lwin11="&Table1[[#This Row],[Latest LWIN]],Table1[[#This Row],[Latest LWIN]]) -> 10997772011
B164: Gaja, Sori Tildin | C164: 2010 | D164: 6x75 | E164: 1440 | F164: 271.2 | G164: 1 | H164: 10997772010 | I164: =HYPERLINK("https://app.liv-ex.com/#/wine-page?lwin11="&Table1[[#This Row],[Latest LWIN]],Table1[[#This Row],[Latest LWIN]]) -> 10997772010
B165: Gaja, Sori Tildin | C165: 2008 | D165: 6x75 | E165: 1800 | F165: 339 | G165: 2 | H165: 10997772008 | I165: =HYPERLINK("https://app.liv-ex.com/#/wine-page?lwin11="&Table1[[#This Row],[Latest LWIN]],Table1[[#This Row],[Latest LWIN]]) -> 10997772008
B166: Gaja, Sori Tildin | C166: 2006 | D166: 6x75 | E166: 1365 | F166: 257.1 | G166: 1 | H166: 10997772006 | I166: =HYPERLINK("https://app.liv-ex.com/#/wine-page?lwin11="&Table1[[#This Row],[Latest LWIN]],Table1[[#This Row],[Latest LWIN]]) -> 10997772006
B167: Gaja, Sori Tildin | C167: 1998 | D167: 2x75 | E167: 404 | F167: 228.3 | G167: 1 | H167: 10997771998 | I167: =HYPERLINK("https://app.liv-ex.com/#/wine-page?lwin11="&Table1[[#This Row],[Latest LWIN]],Table1[[#This Row],[Latest LWIN]]) -> 10997771998
B168: Gaja, Sperss | C168: 2015 | D168: 6x75 | E168: 995 | F168: 187.4 | G168: 9 | H168: 10996342015 | I168: =HYPERLINK("https://app.liv-ex.com/#/wine-page?lwin11="&Table1[[#This Row],[Latest LWIN]],Table1[[#This Row],[Latest LWIN]]) -> 10996342015
B169: Gaja, Sperss | C169: 2015 | D169: 1x150 | E169: 390 | F169: 440.7 | G169: 9 | H169: 10996342015 | I169: =HYPERLINK("https://app.liv-ex.com/#/wine-page?lwin11="&Table1[[#This Row],[Latest LWIN]],Table1[[#This Row],[Latest LWIN]]) -> 10996342015
B170: Gaja, Sperss | C170: 2014 | D170: 6x75 | E170: 783 | F170: 147.5 | G170: 4 | H170: 10996342014 | I170: =HYPERLINK("https://app.liv-ex.com/#/wine-page?lwin11="&Table1[[#This Row],[Latest LWIN]],Table1[[#This Row],[Latest LWIN]]) -> 10996342014
B171: Gaja, Sperss | C171: 2013 | D171: 1x500 | E171: 1768 | F171: 1997.9 | G171: 2 | H171: 10996342013 | I171: =HYPERLINK("https://app.liv-ex.com/#/wine-page?lwin11="&Table1[[#This Row],[Latest LWIN]],Table1[[#This Row],[Latest LWIN]]) -> 10996342013
B172: Gaja, Sperss | C172: 2013 | D172: 1x150 | E172: 343 | F172: 387.6 | G172: 3 | H172: 10996342013 | I172: =HYPERLINK("https://app.liv-ex.com/#/wine-page?lwin11="&Table1[[#This Row],[Latest LWIN]],Table1[[#This Row],[Latest LWIN]]) -> 10996342013
B173: Gaja, Sperss | C173: 2013 | D173: 6x75 | E173: 1061 | F173: 199.8 | G173: 4 | H173: 10996342013 | I173: =HYPERLINK("https://app.liv-ex.com/#/wine-page?lwin11="&Table1[[#This Row],[Latest LWIN]],Table1[[#This Row],[Latest LWIN]]) -> 10996342013
B174: Gaja, Sperss | C174: 1998 | D174: 2x75 | E174: 319 | F174: 180.2 | G174: 1 | H174: 10996341998 | I174: =HYPERLINK("https://app.liv-ex.com/#/wine-page?lwin11="&Table1[[#This Row],[Latest LWIN]],Table1[[#This Row],[Latest LWIN]]) -> 10996341998
B175: Gaja, Sperss | C175: 1998 | D175: 6x75 | E175: 2285 | F175: 430.4 | G175: 2 | H175: 10996341998 | I175: =HYPERLINK("https://app.liv-ex.com/#/wine-page?lwin11="&Table1[[#This Row],[Latest LWIN]],Table1[[#This Row],[Latest LWIN]]) -> 10996341998
B176: GD Vajra, Barolo Bricco Viole | C176: 2016 | D176: 6x75 | E176: 354 | F176: 66.7 | G176: 15 | H176: 11058942016 | I176: =HYPERLINK("https://app.liv-ex.com/#/wine-page?lwin11="&Table1[[#This Row],[Latest LWIN]],Table1[[#This Row],[Latest LWIN]]) -> 11058942016
B177: GD Vajra, Barolo Bricco Viole | C177: 2014 | D177: 6x75 | E177: 288 | F177: 54.2 | G177: 5 | H177: 11058942014 | I177: =HYPERLINK("https://app.liv-ex.com/#/wine-page?lwin11="&Table1[[#This Row],[Latest LWIN]],Table1[[#This Row],[Latest LWIN]]) -> 11058942014
B178: GD Vajra, Barolo Bricco Viole | C178: 2013 | D178: 6x75 | E178: 450 | F178: 84.8 | G178: 2 | H178: 11058942013 | I178: =HYPERLINK("https://app.liv-ex.com/#/wine-page?lwin11="&Table1[[#This Row],[Latest LWIN]],Table1[[#This Row],[Latest LWIN]]) -> 11058942013
B179: GD Vajra, Barolo Bricco Viole | C179: 2012 | D179: 6x75 | E179: 335 | F179: 63.1 | G179: 3 | H179: 11058942012 | I179: =HYPERLINK("https://app.liv-ex.com/#/wine-page?lwin11="&Table1[[#This Row],[Latest LWIN]],Table1[[#This Row],[Latest LWIN]]) -> 11058942012
B180: GD Vajra, Barolo Bricco Viole | C180: 2011 | D180: 6x75 | E180: 500 | F180: 94.2 | G180: 1 | H180: 11058942011 | I180: =HYPERLINK("https://app.liv-ex.com/#/wine-page?lwin11="&Table1[[#This Row],[Latest LWIN]],Table1[[#This Row],[Latest LWIN]]) -> 11058942011
B181: GD Vajra, Barolo Bricco Viole | C181: 2010 | D181: 6x75 | E181: 500 | F181: 94.2 | G181: 1 | H181: 11058942010 | I181: =HYPERLINK("https://app.liv-ex.com/#/wine-page?lwin11="&Table1[[#This Row],[Latest LWIN]],Table1[[#This Row],[Latest LWIN]]) -> 11058942010
B182: GD Vajra, Barolo Ravera | C182: 2016 | D182: 6x75 | E182: 272 | F182: 51.2 | G182: 4 | H182: 13313052016 | I182: =HYPERLINK("https://app.liv-ex.com/#/wine-page?lwin11="&Table1[[#This Row],[Latest LWIN]],Table1[[#This Row],[Latest LWIN]]) -> 13313052016
B183: GD Vajra, Barolo Ravera | C183: 2015 | D183: 6x75 | E183: 350 | F183: 65.9 | G183: 3 | H183: 13313052015 | I183: =HYPERLINK("https://app.liv-ex.com/#/wine-page?lwin11="&Table1[[#This Row],[Latest LWIN]],Table1[[#This Row],[Latest LWIN]]) -> 13313052015
B184: GD Vajra, Barolo Ravera | C184: 2014 | D184: 6x75 | E184: 202 | F184: 38 | G184: 1 | H184: 13313052014 | I184: =HYPERLINK("https://app.liv-ex.com/#/wine-page?lwin11="&Table1[[#This Row],[Latest LWIN]],Table1[[#This Row],[Latest LWIN]]) -> 13313052014
B185: Giacomo Conterno, Barolo Cascina Francia | C185: 2015 | D185: 1x300 | E185: 980 | F185: 1107.5 | G185: 1 | H185: 11392622015 | I185: =HYPERLINK("https://app.liv-ex.com/#/wine-page?lwin11="&Table1[[#This Row],[Latest LWIN]],Table1[[#This Row],[Latest LWIN]]) -> 11392622015
B186: Giacomo Conterno, Barolo Cascina Francia | C186: 2015 | D186: 6x75 | E186: 1095 | F186: 206.2 | G186: 4 | H186: 11392622015 | I186: =HYPERLINK("https://app.liv-ex.com/#/wine-page?lwin11="&Table1[[#This Row],[Latest LWIN]],Table1[[#This Row],[Latest LWIN]]) -> 11392622015
B187: Giacomo Conterno, Barolo Cascina Francia | C187: 2015 | D187: 1x150 | E187: 399 | F187: 450.9 | G187: 3 | H187: 11392622015 | I187: =HYPERLINK("https://app.liv-ex.com/#/wine-page?lwin11="&Table1[[#This Row],[Latest LWIN]],Table1[[#This Row],[Latest LWIN]]) -> 11392622015
B188: Giacomo Conterno, Barolo Cascina Francia | C188: 2015 | D188: 1x150 | E188: 390 | F188: 440.7 | G188: 6 | H188: 11392622015 | I188: =HYPERLINK("https://app.liv-ex.com/#/wine-page?lwin11="&Table1[[#This Row],[Latest LWIN]],Table1[[#This Row],[Latest LWIN]]) -> 11392622015
B189: Giacomo Conterno, Barolo Cascina Francia | C189: 2015 | D189: 6x75 | E189: 1250 | F189: 235.4 | G189: 2 | H189: 11392622015 | I189: =HYPERLINK("https://app.liv-ex.com/#/wine-page?lwin11="&Table1[[#This Row],[Latest LWIN]],Table1[[#This Row],[Latest LWIN]]) -> 11392622015
B190: Giacomo Conterno, Barolo Cascina Francia | C190: 2012 | D190: 12x75 | E190: 1762 | F190: 165.9 | G190: 3 | H190: 11392622012 | I190: =HYPERLINK("https://app.liv-ex.com/#/wine-page?lwin11="&Table1[[#This Row],[Latest LWIN]],Table1[[#This Row],[Latest LWIN]]) -> 11392622012
B191: Giacomo Conterno, Barolo Cascina Francia | C191: 2011 | D191: 6x75 | E191: 925 | F191: 174.2 | G191: 3 | H191: 11392622011 | I191: =HYPERLINK("https://app.liv-ex.com/#/wine-page?lwin11="&Table1[[#This Row],[Latest LWIN]],Table1[[#This Row],[Latest LWIN]]) -> 11392622011
B192: Giacomo Conterno, Barolo Cascina Francia | C192: 2011 | D192: 12x75 | E192: 1800 | F192: 169.5 | G192: 1 | H192: 11392622011 | I192: =HYPERLINK("https://app.liv-ex.com/#/wine-page?lwin11="&Table1[[#This Row],[Latest LWIN]],Table1[[#This Row],[Latest LWIN]]) -> 11392622011
B193: Giacomo Conterno, Barolo Cascina Francia | C193: 2010 | D193: 4x75 | E193: 1106 | F193: 312.5 | G193: 1 | H193: 11392622010 | I193: =HYPERLINK("https://app.liv-ex.com/#/wine-page?lwin11="&Table1[[#This Row],[Latest LWIN]],Table1[[#This Row],[Latest LWIN]]) -> 11392622010
B194: Giacomo Conterno, Barolo Cascina Francia | C194: 2009 | D194: 1x150 | E194: 316 | F194: 357.1 | G194: 3 | H194: 11392622009 | I194: =HYPERLINK("https://app.liv-ex.com/#/wine-page?lwin11="&Table1[[#This Row],[Latest LWIN]],Table1[[#This Row],[Latest LWIN]]) -> 11392622009
B195: Giacomo Conterno, Barolo Cascina Francia | C195: 2009 | D195: 12x75 | E195: 1795 | F195: 169 | G195: 1 | H195: 11392622009 | I195: =HYPERLINK("https://app.liv-ex.com/#/wine-page?lwin11="&Table1[[#This Row],[Latest LWIN]],Table1[[#This Row],[Latest LWIN]]) -> 11392622009
B196: Giacomo Conterno, Barolo Cascina Francia | C196: 2008 | D196: 12x75 | E196: 2450 | F196: 230.7 | G196: 1 | H196: 11392622008 | I196: =HYPERLINK("https://app.liv-ex.com/#/wine-page?lwin11="&Table1[[#This Row],[Latest LWIN]],Table1[[#This Row],[Latest LWIN]]) -> 11392622008
B197: Giacomo Conterno, Barolo Cascina Francia | C197: 2006 | D197: 6x75 | E197: 1200 | F197: 226 | G197: 1 | H197: 11392622006 | I197: =HYPERLINK("https://app.liv-ex.com/#/wine-page?lwin11="&Table1[[#This Row],[Latest LWIN]],Table1[[#This Row],[Latest LWIN]]) -> 11392622006
B198: Giacomo Conterno, Barolo Cascina Francia | C198: 2005 | D198: 12x75 | E198: 1980 | F198: 186.5 | G198: 1 | H198: 11392622005 | I198: =HYPERLINK("https://app.liv-ex.com/#/wine-page?lwin11="&Table1[[#This Row],[Latest LWIN]],Table1[[#This Row],[Latest LWIN]]) -> 11392622005
B199: Giacomo Conterno, Barolo Riserva Monfortino | C199: 2014 | D199: 1x150 | E199: 1900 | F199: 2147.1 | G199: 3 | H199: 10984352014 | I199: =HYPERLINK("https://app.liv-ex.com/#/wine-page?lwin11="&Table1[[#This Row],[Latest LWIN]],Table1[[#This Row],[Latest LWIN]]) -> 10984352014
B200: Giacomo Conterno, Barolo Riserva Monfortino | C200: 2014 | D200: 3x75 | E200: 2430 | F200: 915.3 | G200: 2 | H200: 10984352014 | I200: =HYPERLINK("https://app.liv-ex.com/#/wine-page?lwin11="&Table1[[#This Row],[Latest LWIN]],Table1[[#This Row],[Latest LWIN]]) -> 10984352014
B201: Giacomo Conterno, Barolo Riserva Monfortino | C201: 2014 | D201: 3x75 | E201: 2393 | F201: 901.4 | G201: 8 | H201: 10984352014 | I201: =HYPERLINK("https://app.liv-ex.com/#/wine-page?lwin11="&Table1[[#This Row],[Latest LWIN]],Table1[[#This Row],[Latest LWIN]]) -> 10984352014
B202: Giacomo Conterno, Barolo Riserva Monfortino | C202: 2014 | D202: 3x75 | E202: 2636 | F202: 992.9 | G202: 2 | H202: 10984352014 | I202: =HYPERLINK("https://app.liv-ex.com/#/wine-page?lwin11="&Table1[[#This Row],[Latest LWIN]],Table1[[#This Row],[Latest LWIN]]) -> 10984352014
B203: Giacomo Conterno, Barolo Riserva Monfortino | C203: 2014 | D203: 3x75 | E203: 2693 | F203: 1014.4 | G203: 5 | H203: 10984352014 | I203: =HYPERLINK("https://app.liv-ex.com/#/wine-page?lwin11="&Table1[[#This Row],[Latest LWIN]],Table1[[#This Row],[Latest LWIN]]) -> 10984352014
B204: Giacomo Conterno, Barolo Riserva Monfortino | C204: 2014 | D204: 3x75 | E204: 2407 | F204: 906.7 | G204: 6 | H204: 10984352014 | I204: =HYPERLINK("https://app.liv-ex.com/#/wine-page?lwin11="&Table1[[#This Row],[Latest LWIN]],Table1[[#This Row],[Latest LWIN]]) -> 10984352014
B205: Giacomo Conterno, Barolo Riserva Monfortino | C205: 2014 | D205: 1x300 | E205: 3808 | F205: 4303.3 | G205: 1 | H205: 10984352014 | I205: =HYPERLINK("https://app.liv-ex.com/#/wine-page?lwin11="&Table1[[#This Row],[Latest LWIN]],Table1[[#This Row],[Latest LWIN]]) -> 10984352014
B206: Giacomo Conterno, Barolo Riserva Monfortino | C206: 2014 | D206: 1x150 | E206: 1995 | F206: 2254.5 | G206: 1 | H206: 10984352014 | I206: =HYPERLINK("https://app.liv-ex.com/#/wine-page?lwin11="&Table1[[#This Row],[Latest LWIN]],Table1[[#This Row],[Latest LWIN]]) -> 10984352014
B207: Giacomo Conterno, Barolo Riserva Monfortino | C207: 2014 | D207: 1x300 | E207: 3900 | F207: 4407.2 | G207: 3 | H207: 10984352014 | I207: =HYPERLINK("https://app.liv-ex.com/#/wine-page?lwin11="&Table1[[#This Row],[Latest LWIN]],Table1[[#This Row],[Latest LWIN]]) -> 10984352014
B208: Giacomo Conterno, Barolo Riserva Monfortino | C208: 2014 | D208: 1x150 | E208: 1723 | F208: 1947.1 | G208: 6 | H208: 10984352014 | I208: =HYPERLINK("https://app.liv-ex.com/#/wine-page?lwin11="&Table1[[#This Row],[Latest LWIN]],Table1[[#This Row],[Latest LWIN]]) -> 10984352014
... 317 more rows
